bitfinex-derivatives/quotes_BTCF0:USTF0_20250930
["timestamp","ask_amount","ask_price","bid_price","bid_amount"]
[1759201682367,2.04565919,114570.0,114560.0,0.02991]
[1759201682768,2.04565919,114570.0,114560.0,0.007]
[1759201683169,2.07705297,114570.0,114560.0,0.007]
[1759201683561,1.28361297,114570.0,114560.0,0.007]
[1759201683757,2.07693297,114570.0,114560.0,0.007]
[1759201684666,2.3485947,114570.0,114560.0,0.007]
[1759201685569,1.5552747,114570.0,114560.0,0.007]
[1759201685771,2.3485947,114570.0,114560.0,0.007]
[1759201688371,2.34857686,114570.0,114560.0,0.007]
[1759201689467,2.31718308,114570.0,114560.0,0.007]
[1759201689866,1.91718308,114570.0,114560.0,0.007]
[1759201690171,1.94857686,114570.0,114560.0,0.007]
[1759201694674,1.15525686,114570.0,114560.0,0.007]
[1759201694877,1.94857686,114570.0,114560.0,0.007]
[1759201695577,1.15525686,114570.0,114560.0,0.007]
[1759201695774,1.94857686,114570.0,114560.0,0.007]
[1759201696367,1.12386308,114570.0,114560.0,0.007]
[1759201696572,1.91718308,114570.0,114560.0,0.007]
[1759201696875,1.91718308,114570.0,114560.0,0.02991]
[1759201696876,1.12386308,114570.0,114560.0,0.02991]
[1759201697075,1.91718308,114570.0,114560.0,0.02991]
[1759201697377,1.64553027,114570.0,114560.0,0.02991]
[1759201697577,1.91718308,114570.0,114560.0,0.02991]
[1759201697777,1.64553027,114570.0,114560.0,0.02991]
[1759201699680,1.91718308,114570.0,114560.0,0.02991]
[1759201701990,1.12386308,114570.0,114560.0,0.02991]
[1759201702294,1.91718308,114570.0,114560.0,0.02991]
[1759201704887,1.64553027,114570.0,114560.0,0.02991]
[1759201705190,1.91718308,114570.0,114560.0,0.02991]
[1759201705989,1.12386308,114570.0,114560.0,0.02991]
[1759201706285,1.94857686,114570.0,114560.0,0.02991]
[1759201708888,0.88360405,114570.0,114560.0,0.02991]
[1759201709089,1.67692405,114570.0,114560.0,0.02991]
[1759201709588,1.94857686,114570.0,114560.0,0.02991]
[1759201714892,1.94857686,114570.0,114560.0,0.007]
[1759201716694,1.15525686,114570.0,114560.0,0.007]
[1759201717090,1.94853686,114570.0,114560.0,0.007]
[1759201724697,1.58773686,114570.0,114560.0,0.007]
[1759201724903,1.94853686,114570.0,114560.0,0.007]
[1759201725703,1.15525686,114570.0,114560.0,0.007]
[1759201726003,1.94849686,114570.0,114560.0,0.007]
[1759201726409,0.61195124,114570.0,114560.0,0.02841]
[1759201726606,1.94849686,114570.0,114560.0,0.02841]
[1759201727400,1.94849686,114570.0,114560.0,0.007]
[1759201728205,1.94849686,114570.0,114560.0,0.02841]
[1759201729503,1.96419376,114570.0,114560.0,0.02841]
[1759201730506,1.96419376,114570.0,114560.0,0.007]
[1759201733910,1.99560506,114570.0,114560.0,0.007]
[1759201734414,1.99560506,114570.0,114560.0,0.03028]
[1759201734807,1.99560506,114570.0,114560.0,0.007]
[1759201736314,1.99560506,114570.0,114560.0,0.03028]
[1759201736506,1.99556506,114570.0,114560.0,0.03028]
[1759201736907,1.96415376,114570.0,114560.0,0.007]
[1759201739520,1.94847816,114570.0,114560.0,0.007]
[1759201740619,1.15527816,114570.0,114560.0,0.007]
[1759201740819,1.94847816,114570.0,114560.0,0.007]
[1759201741113,1.94847816,114570.0,114560.0,0.03028]
[1759201741318,1.94843816,114570.0,114560.0,0.03028]
[1759201742920,1.94843816,114570.0,114560.0,0.007]
[1759201744422,1.40513254,114570.0,114560.0,0.03028]
[1759201744617,0.88362535,114570.0,114560.0,0.03028]
[1759201744822,1.67678535,114570.0,114560.0,0.03028]
[1759201745325,0.88362535,114570.0,114560.0,0.03028]
[1759201745511,1.94843816,114570.0,114560.0,0.03028]
[1759201745712,1.94843816,114570.0,114560.0,0.007]
[1759201750325,1.94843194,114570.0,114560.0,0.007]
[1759201752023,1.67678224,114570.0,114560.0,0.007]
[1759201752324,1.67674224,114570.0,114560.0,0.03028]
[1759201752525,0.88362224,114570.0,114560.0,0.03028]
[1759201752727,1.67674224,114570.0,114560.0,0.03028]
[1759201753228,0.88362224,114570.0,114560.0,0.03028]
[1759201753619,1.67674224,114570.0,114560.0,0.03028]
[1759201753815,1.67674224,114570.0,114560.0,0.007]
[1759201756627,1.67674224,114570.0,114560.0,0.03028]
[1759201756822,1.67674224,114570.0,114560.0,0.007]
[1759201757222,1.67674224,114570.0,114560.0,0.03001]
[1759201757428,1.67674224,114570.0,114560.0,0.007]
[1759201758432,1.94839194,114570.0,114560.0,0.007]
[1759201759528,1.67674224,114570.0,114560.0,0.007]
[1759201762430,1.31594224,114570.0,114560.0,0.007]
[1759201762630,1.67674224,114570.0,114560.0,0.007]
[1759201766030,1.94839194,114570.0,114560.0,0.007]
[1759201767323,2.30919194,114570.0,114560.0,0.007]
[1759201767523,2.35628262,114570.0,114560.0,0.007]
[1759201768135,2.35620262,114570.0,114560.0,0.007]
[1759201769436,1.56316262,114570.0,114560.0,0.007]
[1759201769734,2.32478754,114570.0,114560.0,0.007]
[1759201771133,1.53174754,114570.0,114560.0,0.007]
[1759201771332,2.32478754,114570.0,114560.0,0.007]
[1759201773638,0.1226372,114540.0,114530.0,0.42954006]
[1759201773833,1.47903683,114540.0,114530.0,0.02171]
[1759201774633,0.1226448,114530.0,114520.0,0.42954006]
[1759201774832,0.41435473,114530.0,114520.0,0.42954006]
[1759201775136,0.39935473,114530.0,114520.0,0.42954006]
[1759201775639,0.39835473,114530.0,114520.0,0.38251]
[1759201776340,1.19147278,114530.0,114520.0,0.4697724]
[1759201776530,0.39839278,114530.0,114520.0,0.4697724]
[1759201776830,1.20647278,114530.0,114520.0,0.4707724]
[1759201777241,1.19147278,114530.0,114520.0,0.4697724]
[1759201777537,1.19147278,114530.0,114520.0,0.4787724]
[1759201777937,0.39839278,114530.0,114520.0,0.4697724]
[1759201778239,1.20011405,114530.0,114520.0,0.4727724]
[1759201778433,1.27108152,114530.0,114520.0,0.4727724]
[1759201779339,0.47800152,114530.0,114520.0,0.4727724]
[1759201779530,1.25098324,114530.0,114520.0,0.51980246]
[1759201780127,1.27998324,114530.0,114520.0,0.51880246]
[1759201780336,0.48690324,114530.0,114520.0,0.51880246]
[1759201780637,1.27998324,114530.0,114520.0,0.51880246]
[1759201781138,1.20008717,114530.0,114520.0,0.51880246]
[1759201781539,1.20903468,114530.0,114520.0,0.51880246]
[1759201782543,1.29628948,114530.0,114520.0,0.51880246]
[1759201783041,0.40700717,114530.0,114520.0,0.51880246]
[1759201783234,1.20008717,114530.0,114520.0,0.51880246]
[1759201783542,0.40700717,114530.0,114520.0,0.51880246]
[1759201783746,1.20008717,114530.0,114520.0,0.51880246]
[1759201784541,0.40700717,114530.0,114520.0,0.51880246]
[1759201784737,1.20879662,114530.0,114520.0,0.51880246]
[1759201785539,0.40700717,114530.0,114520.0,0.51880246]
[1759201785739,1.28734197,114530.0,114520.0,0.51880246]
[1759201786340,0.49426197,114530.0,114520.0,0.51880246]
[1759201786738,1.28734197,114530.0,114520.0,0.51880246]
[1759201787931,1.28734197,114530.0,114520.0,0.3628]
[1759201788137,1.28734197,114530.0,114520.0,0.002]
[1759201788437,1.30741123,114530.0,114520.0,0.002]
[1759201788641,1.28734197,114530.0,114520.0,0.002]
[1759201789234,1.29602925,114530.0,114520.0,0.002]
[1759201789943,1.31609451,114530.0,114520.0,0.002]
[1759201791942,1.67689451,114530.0,114520.0,0.002]
[1759201792247,2.07689451,114530.0,114520.0,0.002]
[1759201793042,2.07689451,114530.0,114500.0,0.49510396]
[1759201793043,0.08727,114510.0,114500.0,0.04703006]
[1759201793236,0.1233476,114500.0,114490.0,0.43115006]
[1759201793435,0.3949973,114500.0,114490.0,0.43115006]
[1759201793741,0.3949973,114500.0,114490.0,0.38412]
[1759201794547,0.3939973,114500.0,114490.0,0.38412]
[1759201794947,0.3939973,114500.0,114490.0,0.02332]
[1759201795138,0.03607,114490.0,114480.0,0.51843856]
[1759201795444,0.02807,114490.0,114480.0,0.51843856]
[1759201796235,0.01707,114490.0,114480.0,0.53225856]
[1759201796547,0.1043554,114490.0,114480.0,0.53225856]
[1759201797047,0.18360049,114490.0,114480.0,0.54625856]
[1759201797244,0.18260049,114490.0,114480.0,0.53225856]
[1759201797445,0.19060049,114490.0,114480.0,0.53225856]
[1759201798751,0.46225019,114490.0,114480.0,0.53225856]
[1759201799449,0.18176265,114490.0,114480.0,0.53225856]
[1759201800848,0.19505265,114490.0,114480.0,0.53225856]
[1759201801853,0.46670235,114490.0,114480.0,0.43115006]
[1759201802053,0.46670235,114490.0,114480.0,0.38412]
[1759201803254,0.46670235,114490.0,114480.0,0.02332]
[1759201804254,1.25994235,114490.0,114480.0,0.02332]
[1759201806655,0.46670235,114490.0,114480.0,0.02332]
[1759201806858,1.25998235,114490.0,114480.0,0.02332]
[1759201807850,1.25998235,114490.0,114480.0,0.1106131]
[1759201809859,0.46670235,114490.0,114480.0,0.1106131]
[1759201810158,1.26002235,114490.0,114480.0,0.1106131]
[1759201810454,1.25202235,114490.0,114480.0,0.1106131]
[1759201810660,0.45970235,114490.0,114480.0,0.1106131]
[1759201810861,1.25302235,114490.0,114480.0,0.1106131]
[1759201811360,1.25202235,114490.0,114480.0,0.1106131]
[1759201811557,1.27602235,114490.0,114480.0,0.1146131]
[1759201811758,0.48270235,114490.0,114480.0,0.1146131]
[1759201811959,1.27602235,114490.0,114480.0,0.1146131]
[1759201812261,1.27635791,114490.0,114480.0,0.1146131]
[1759201812961,1.25235791,114490.0,114480.0,0.1106131]
[1759201813164,1.27635791,114490.0,114480.0,0.1146131]
[1759201818857,0.39575251,114490.0,114480.0,0.1146131]
[1759201819056,1.18907251,114490.0,114480.0,0.1146131]
[1759201819568,1.20913961,114490.0,114480.0,0.1146131]
[1759201819868,1.92921037,114490.0,114480.0,0.004]
[1759201823168,2.63260162,114490.0,114480.0,0.004]
[1759201823370,2.36061636,114490.0,114480.0,0.004]
[1759201823569,2.40772535,114490.0,114480.0,0.004]
[1759201823972,2.32921037,114490.0,114480.0,0.004]
[1759201825573,2.40772535,114490.0,114480.0,0.004]
[1759201826771,2.36061636,114490.0,114480.0,0.004]
[1759201827373,2.36065636,114490.0,114480.0,0.004]
[1759201830479,0.1234907,114470.0,114460.0,0.02211919]
[1759201830678,1.48092832,114470.0,114460.0,0.02211919]
[1759201831685,1.49892832,114470.0,114460.0,0.02511919]
[1759201832383,1.20894306,114470.0,114460.0,0.02211919]
[1759201832586,1.23294306,114470.0,114460.0,0.02611919]
[1759201832888,1.21094306,114470.0,114460.0,0.03211919]
[1759201834177,1.20994306,114470.0,114460.0,0.02611919]
[1759201834579,1.24494306,114470.0,114460.0,0.03211919]
[1759201834777,0.45154306,114470.0,114460.0,0.11942749]
[1759201834984,0.9733578,114470.0,114460.0,0.13258749]
[1759201835180,1.24534306,114470.0,114460.0,0.13258749]
[1759201835380,1.24534664,114470.0,114460.0,0.13258749]
[1759201835584,1.24534664,114470.0,114460.0,0.11942749]
[1759201836781,0.07879068,114470.0,114460.0,1.43735801]
[1759201836985,0.07879068,114470.0,114460.0,1.48438807]
[1759201836986,0.85224,114470.0,114460.0,1.48438807]
[1759201837282,1.12422526,114470.0,114460.0,1.21240281]
[1759201837478,1.12422526,114470.0,114460.0,1.48438807]
[1759201837479,0.05872,114470.0,114460.0,1.48438807]
[1759201837680,0.85248,114470.0,114460.0,1.48438807]
[1759201837886,0.05872,114470.0,114460.0,1.48438807]
[1759201838088,0.85248,114470.0,114460.0,1.48438807]
[1759201838383,0.85244,114470.0,114460.0,1.48438807]
[1759201838583,0.85244,114470.0,114460.0,0.94041755]
[1759201838786,0.85244,114470.0,114460.0,1.48438807]
[1759201839085,0.05872,114470.0,114460.0,1.48438807]
[1759201839285,0.85252,114470.0,114460.0,1.48438807]
[1759201839486,0.85252,114470.0,114460.0,1.08438807]
[1759201841986,1.22567596,114470.0,114460.0,0.54041755]
[1759201842185,1.22567596,114470.0,114460.0,0.51942749]
[1759201842588,1.2457541,114470.0,114460.0,0.51942749]
[1759201843385,0.97376884,114470.0,114460.0,0.51942749]
[1759201843584,1.2457541,114470.0,114460.0,0.51942749]
[1759201844085,1.2457541,114470.0,114460.0,0.11942749]
[1759201844490,1.2457541,114470.0,114460.0,0.03211919]
[1759201845884,1.87854328,114470.0,114460.0,0.01007919]
[1759201846291,1.87854328,114470.0,114460.0,0.03211919]
[1759201848091,1.87838328,114470.0,114460.0,0.11942749]
[1759201848291,1.87830328,114470.0,114460.0,0.11942749]
[1759201848597,1.60631802,114470.0,114460.0,0.11942749]
[1759201849596,1.60631802,114470.0,114460.0,0.16645755]
[1759201853499,1.24551802,114470.0,114460.0,0.16645755]
[1759201859707,1.24551802,114470.0,114460.0,0.11942749]
[1759201860507,0.36425732,114470.0,114460.0,0.13339749]
[1759201860703,1.15813732,114470.0,114460.0,0.13339749]
[1759201860905,1.24543802,114470.0,114460.0,0.13339749]
[1759201861107,1.24543802,114470.0,114460.0,0.11942749]
[1759201862204,1.24543802,114470.0,114460.0,1.43816801]
[1759201862205,0.07880206,114470.0,114460.0,1.43816801]
[1759201862404,0.87228206,114470.0,114460.0,0.89419749]
[1759201862607,0.87228206,114470.0,114460.0,1.48519807]
[1759201862608,0.87188206,114470.0,114460.0,1.48519807]
[1759201862802,0.87228206,114470.0,114460.0,1.48519807]
[1759201864001,0.07880206,114470.0,114460.0,1.48519807]
[1759201864203,0.16610276,114470.0,114460.0,1.48519807]
[1759201864404,0.45176802,114470.0,114460.0,0.71807445]
[1759201864606,0.45176802,114470.0,114460.0,0.80538275]
[1759201865806,0.16610276,114470.0,114460.0,0.80538275]
[1759201866005,0.43808802,114470.0,114460.0,0.80538275]
[1759201869509,1.23296802,114470.0,114460.0,0.80538275]
[1759201869709,1.23296802,114470.0,114460.0,0.85241281]
[1759201870404,1.23296802,114470.0,114460.0,0.76510451]
[1759201870610,1.24664802,114470.0,114460.0,0.35113451]
[1759201870811,1.24664802,114470.0,114460.0,0.43844281]
[1759201871710,1.24664802,114470.0,114460.0,0.07914925]
[1759201872312,1.24672344,114470.0,114460.0,0.07914925]
[1759201873712,1.24672344,114470.0,114460.0,0.16645755]
[1759201874514,1.24672344,114470.0,114460.0,0.07914925]
[1759201875418,0.97466276,114470.0,114460.0,0.07914925]
[1759201875713,1.24672344,114470.0,114460.0,0.07914925]
[1759201877413,1.60752344,114470.0,114460.0,0.05710925]
[1759201878023,1.60752344,114470.0,114460.0,0.07843925]
[1759201880412,1.60752344,114470.0,114460.0,0.05710925]
[1759201881416,1.73546276,114470.0,114460.0,0.05710925]
[1759201881622,2.00752344,114470.0,114460.0,0.01007919]
[1759201883326,2.00752344,114470.0,114450.0,0.04703006]
[1759201883327,0.1219983,114460.0,114450.0,0.04703006]
[1759201883519,0.087318,114450.0,114430.0,0.51082417]
[1759201883821,0.29255056,114440.0,114430.0,0.54685417]
[1759201884022,0.00743988,114440.0,114430.0,0.54685417]
[1759201884419,0.0075331,114440.0,114430.0,0.54685417]
[1759201885118,0.0095331,114440.0,114430.0,0.55985417]
[1759201885423,0.0075331,114440.0,114430.0,0.54685417]
[1759201885723,0.0245331,114440.0,114430.0,0.55085417]
[1759201886318,0.38391738,114440.0,114430.0,0.55085417]
[1759201886518,0.39508738,114440.0,114430.0,0.02643]
[1759201886819,0.37715945,114440.0,114430.0,0.02643]
[1759201887324,0.37715945,114440.0,114430.0,0.1137612]
[1759201887623,0.36015945,114440.0,114430.0,0.1097612]
[1759201887823,0.39315945,114440.0,114430.0,0.1157612]
[1759201888023,0.36880672,114440.0,114430.0,0.1097612]
[1759201888323,0.37280672,114440.0,114430.0,0.1117612]
[1759201888925,0.36880672,114440.0,114430.0,0.1097612]
[1759201889119,0.40780672,114440.0,114430.0,0.1167612]
[1759201890224,0.13574604,114440.0,114430.0,0.1167612]
[1759201890417,0.13574604,114440.0,114430.0,0.1303612]
[1759201890418,1.21080672,114440.0,114430.0,0.1303612]
[1759201891420,0.40780672,114440.0,114430.0,0.1303612]
[1759201891622,1.21072672,114440.0,114430.0,0.1303612]
[1759201892725,0.40780672,114440.0,114430.0,0.1303612]
[1759201892924,1.21064672,114440.0,114430.0,0.1303612]
[1759201893626,1.21040672,114440.0,114430.0,0.1303612]
[1759201894129,1.29773032,114440.0,114430.0,0.1167612]
[1759201894523,0.40780672,114440.0,114430.0,0.1167612]
[1759201894725,1.21028672,114440.0,114430.0,0.1167612]
[1759201896029,1.29761032,114440.0,114430.0,0.0943312]
[1759201896623,1.29761032,114440.0,114430.0,0.1167612]
[1759201897926,1.29761032,114440.0,114430.0,0.0943312]
[1759201898228,2.05841032,114440.0,114430.0,0.007]
[1759201898423,2.08400956,114440.0,114430.0,0.007]
[1759201899119,1.81194888,114440.0,114430.0,0.007]
[1759201899324,2.08400956,114440.0,114430.0,0.007]
[1759201899524,1.68400956,114440.0,114430.0,0.007]
[1759201899726,1.64500956,114440.0,114410.0,0.4617432]
[1759201899923,0.03469,114430.0,114420.0,0.02243]
[1759201900128,0.30675068,114430.0,114420.0,0.02243]
[1759201901930,1.11539068,114430.0,114420.0,0.1097688]
[1759201902429,0.30675068,114430.0,114420.0,0.1097688]
[1759201902629,1.11543068,114430.0,114420.0,0.1097688]
[1759201902831,1.12443068,114430.0,114420.0,0.1107688]
[1759201903225,0.31575068,114430.0,114420.0,0.1107688]
[1759201903530,1.12147068,114430.0,114420.0,0.1097688]
[1759201903926,0.02764,114430.0,114420.0,0.1233688]
[1759201904131,0.83672,114430.0,114420.0,0.75622948]
[1759201904529,0.83632,114430.0,114420.0,0.4841688]
[1759201904831,0.83672,114430.0,114420.0,0.75622948]
[1759201905030,0.83672,114430.0,114420.0,0.4841688]
[1759201905528,0.02804,114430.0,114420.0,0.4841688]
[1759201905734,0.83672,114430.0,114420.0,0.4841688]
[1759201907938,0.02804,114430.0,114420.0,0.4841688]
[1759201908132,0.02804,114430.0,114420.0,1.20323391]
[1759201908332,0.0064,114430.0,114420.0,1.20323391]
[1759201908635,0.006,114430.0,114420.0,1.20323391]
[1759201908934,0.02804,114430.0,114420.0,1.20323391]
[1759201909326,0.0064,114430.0,114420.0,1.15622948]
[1759201909527,0.07813616,114440.0,114430.0,0.1236712]
[1759201909736,0.07893616,114440.0,114430.0,0.80357443]
[1759201910341,0.07028889,114440.0,114430.0,0.80357443]
[1759201910827,0.08528889,114440.0,114430.0,0.80857443]
[1759201911032,0.08448889,114440.0,114430.0,0.80857443]
[1759201911336,0.08488889,114440.0,114430.0,0.80857443]
[1759201911537,0.10659889,114440.0,114430.0,0.80857443]
[1759201914037,0.08488889,114440.0,114430.0,0.80857443]
[1759201914531,0.10659889,114440.0,114430.0,0.80857443]
[1759201919143,0.08488889,114440.0,114430.0,0.80857443]
[1759201920043,0.46598317,114440.0,114430.0,0.44918255]
[1759201920341,0.47864317,114440.0,114430.0,0.53651375]
[1759201920544,0.46598317,114440.0,114430.0,0.53651375]
[1759201921938,0.10659889,114440.0,114430.0,0.53651375]
[1759201923947,0.10659889,114440.0,114430.0,0.4894712]
[1759201925248,0.08488889,114440.0,114430.0,1.16153188]
[1759201926541,0.08488889,114440.0,114430.0,1.97113188]
[1759201927748,0.08488889,114440.0,114430.0,1.6990712]
[1759201928047,0.08488889,114440.0,114430.0,1.97113188]
[1759201928249,0.0706886,114440.0,114430.0,1.97113188]
[1759201929248,0.0706886,114440.0,114430.0,1.6990712]
[1759201929446,0.0706886,114440.0,114430.0,1.76176797]
[1759201930747,0.0706886,114440.0,114430.0,1.76148797]
[1759201931447,0.0923986,114440.0,114430.0,1.76148797]
[1759201931749,0.36445928,114440.0,114430.0,0.95216797]
[1759201931949,0.36445928,114440.0,114430.0,1.76144797]
[1759201932248,0.0923986,114440.0,114430.0,2.03361594]
[1759201932447,0.36456657,114440.0,114430.0,2.03361594]
[1759201933744,0.36456657,114440.0,114430.0,1.22433594]
[1759201933948,0.36456657,114440.0,114430.0,2.03377594]
[1759201934450,0.36456657,114440.0,114430.0,1.76160797]
[1759201934646,0.36456657,114440.0,114430.0,2.03377594]
[1759201935048,0.36456657,114440.0,114430.0,1.22433594]
[1759201935248,0.36456657,114440.0,114430.0,2.03357594]
[1759201935748,0.36456657,114440.0,114430.0,0.95216797]
[1759201936050,1.13671814,114440.0,114430.0,0.16192102]
[1759201936545,1.13671814,114440.0,114430.0,0.17536102]
[1759201937551,1.13671814,114440.0,114430.0,0.1282412]
[1759201940756,1.13671814,114440.0,114430.0,0.1148012]
[1759201941057,1.12251662,114440.0,114430.0,0.02747]
[1759201941255,1.91893662,114440.0,114430.0,0.1287712]
[1759201941548,1.10985662,114440.0,114430.0,0.1287712]
[1759201941752,1.91881662,114440.0,114430.0,0.1287712]
[1759201941956,1.10985662,114440.0,114430.0,0.1287712]
[1759201942157,1.91881662,114440.0,114430.0,0.4895712]
[1759201943353,1.91873662,114440.0,114430.0,0.4895712]
[1759201946055,1.91849662,114440.0,114430.0,0.4895712]
[1759201946257,1.91849662,114440.0,114430.0,0.76173917]
[1759201946258,0.86464708,114440.0,114430.0,0.76173917]
[1759201946564,0.88641708,114440.0,114430.0,0.82443594]
[1759201946751,0.88681708,114440.0,114430.0,0.82443594]
[1759201946949,0.07865708,114440.0,114430.0,0.82443594]
[1759201947147,0.35082505,114440.0,114430.0,0.82443594]
[1759201947351,0.33582505,114440.0,114430.0,0.82443594]
[1759201947655,0.36182505,114440.0,114430.0,0.82443594]
[1759201948359,0.44914865,114440.0,114430.0,0.82443594]
[1759201948559,0.44914865,114440.0,114430.0,0.76173917]
[1759201948863,0.33582505,114440.0,114430.0,0.75673917]
[1759201949165,0.36782505,114440.0,114430.0,0.76273917]
[1759201949665,0.36782505,114440.0,114430.0,0.80988249]
[1759201950668,0.07348708,114440.0,114430.0,1.22543594]
[1759201950963,0.07308708,114440.0,114430.0,1.49760391]
[1759201951154,0.05928742,114440.0,114430.0,1.49760391]
[1759201951356,0.05928742,114440.0,114430.0,1.22543594]
[1759201952066,0.05928742,114440.0,114430.0,2.03267594]
[1759201952067,0.14661102,114440.0,114430.0,2.03267594]
[1759201952268,0.14661102,114440.0,114430.0,2.03259594]
[1759201952461,0.05928742,114440.0,114430.0,2.03259594]
[1759201952662,0.05928742,114440.0,114430.0,2.03251594]
[1759201952861,0.05928742,114440.0,114430.0,2.03243594]
[1759201953364,0.05928742,114440.0,114430.0,2.03235594]
[1759201953666,0.05928742,114440.0,114430.0,1.22543594]
[1759201954269,0.05928742,114440.0,114430.0,2.03219594]
[1759201954865,0.46145025,114440.0,114430.0,1.96937917]
[1759201956071,0.18928228,114440.0,114430.0,1.96937917]
[1759201956572,0.18928228,114440.0,114430.0,1.16273917]
[1759201956768,0.18928228,114440.0,114430.0,1.96909917]
[1759201956973,0.18928228,114440.0,114430.0,1.96901917]
[1759201957367,0.18928228,114440.0,114430.0,1.16273917]
[1759201957673,0.46145025,114440.0,114430.0,1.96893917]
[1759201958573,0.46245025,114440.0,114430.0,1.97393917]
[1759201959174,0.42945025,114440.0,114430.0,1.96293917]
[1759201959370,0.42945025,114440.0,114430.0,1.15673917]
[1759201959675,0.40894899,114440.0,114430.0,1.56257917]
[1759201964480,0.11461102,114440.0,114430.0,1.56257917]
[1759201966075,0.11461102,114440.0,114430.0,1.20177917]
[1759201966274,0.29945539,114440.0,114430.0,1.56257917]
[1759201966478,0.02728742,114440.0,114430.0,1.56257917]
[1759201966678,0.38677899,114440.0,114430.0,1.56257917]
[1759201967785,0.11461102,114440.0,114430.0,1.56257917]
[1759201967985,0.38677899,114440.0,114430.0,1.56257917]
[1759201968893,0.11461102,114440.0,114430.0,1.56257917]
[1759201969188,0.41777899,114440.0,114430.0,1.56757917]
[1759201969381,0.41777899,114440.0,114430.0,1.63027594]
[1759201969580,0.41977899,114440.0,114430.0,1.63627594]
[1759201970184,0.40557897,114440.0,114430.0,1.63627594]
[1759201970686,0.31825537,114440.0,114430.0,1.63627594]
[1759201971185,0.31825537,114440.0,114430.0,0.55826797]
[1759201971392,0.34147537,114440.0,114430.0,0.83043594]
[1759201971689,0.30847537,114440.0,114430.0,1.62435594]
[1759201973389,0.30847537,114440.0,114430.0,0.81943594]
[1759201973590,0.30847537,114440.0,114430.0,1.62435594]
[1759201976986,0.30847537,114440.0,114430.0,0.81943594]
[1759201977191,0.30847537,114440.0,114430.0,1.62407594]
[1759201979696,0.0130874,114440.0,114430.0,1.62407594]
[1759201979894,0.28525537,114440.0,114430.0,1.62407594]
[1759201983998,0.0130874,114440.0,114430.0,1.62407594]
[1759201984198,0.28525537,114440.0,114430.0,1.62407594]
[1759201986400,0.0130874,114440.0,114430.0,1.62407594]
[1759201986898,0.0130874,114440.0,114430.0,0.54726797]
[1759201987200,0.0130874,114440.0,114430.0,1.62251594]
[1759201988201,0.0130874,114440.0,114430.0,1.62247594]
[1759201988596,0.0130874,114440.0,114430.0,0.81943594]
[1759201988796,0.0130874,114440.0,114430.0,1.62223594]
[1759201989296,0.66796684,114440.0,114430.0,0.45993677]
[1759201989499,0.30847537,114440.0,114430.0,0.81943584]
[1759201989695,0.30847537,114440.0,114430.0,1.62211584]
[1759201991105,0.30847537,114440.0,114430.0,1.62207584]
[1759201992000,0.30847537,114440.0,114430.0,0.81943584]
[1759201992304,0.0363074,114440.0,114430.0,1.34962787]
[1759201992608,0.39580157,114440.0,114430.0,0.45993677]
[1759201992794,0.38160126,114440.0,114430.0,0.09913677]
[1759201993196,0.38160126,114440.0,114430.0,0.03644]
[1759201994200,0.38160126,114440.0,114430.0,0.1237711]
[1759201995106,0.45077341,114440.0,114430.0,0.1237711]
[1759201996606,0.36344991,114440.0,114430.0,0.4237711]
[1759201996995,0.36344991,114440.0,114430.0,0.7845711]
[1759202002008,0.38744991,114440.0,114430.0,0.7895711]
[1759202004508,0.36344991,114440.0,114430.0,0.7845711]
[1759202004701,0.39444991,114440.0,114430.0,0.7895711]
[1759202013010,0.12227924,114440.0,114430.0,0.7895711]
[1759202013309,0.10017215,114440.0,114430.0,1.46174177]
[1759202013514,0.10017215,114440.0,114430.0,1.52443854]
[1759202013912,0.10057215,114440.0,114430.0,1.52443854]
[1759202015311,0.10057215,114440.0,114430.0,1.46174177]
[1759202016215,0.10057215,114440.0,114430.0,1.47030004]
[1759202017312,0.08637227,114440.0,114430.0,1.548671]
[1759202017516,0.08597227,114440.0,114430.0,1.548671]
[1759202017710,0.08637227,114440.0,114430.0,2.348231]
[1759202019617,0.08637227,114440.0,114430.0,1.948231]
[1759202021017,0.0314,114440.0,114430.0,1.948231]
[1759202021219,0.0314,114440.0,114430.0,1.86986004]
[1759202022518,0.0314,114440.0,114430.0,1.86930004]
[1759202025021,0.0314,114440.0,114430.0,1.93185145]
[1759202028521,0.0314,114440.0,114430.0,2.29233145]
[1759202028819,0.0024,114440.0,114430.0,2.29533145]
[1759202029820,0.0004,114440.0,114430.0,2.28733145]
[1759202030021,0.0224,114440.0,114430.0,1.49289145]
[1759202030220,0.0224,114440.0,114430.0,2.29109145]
[1759202030623,0.0024,114440.0,114430.0,2.29209145]
[1759202030922,0.0344,114440.0,114430.0,2.29709145]
[1759202031623,0.0344,114440.0,114430.0,2.23430004]
[1759202031828,0.0344,114440.0,114430.0,2.63430004]
[1759202032019,0.02163,114470.0,114460.0,0.0873073]
[1759202032224,0.02163,114470.0,114460.0,0.53066226]
[1759202032520,0.38089417,114480.0,114470.0,0.03547]
[1759202032720,0.38089417,114480.0,114470.0,0.08255496]
[1759202032721,0.38169417,114480.0,114470.0,0.08255496]
[1759202032920,0.11807578,114480.0,114470.0,0.16985856]
[1759202033316,0.11807578,114480.0,114470.0,0.08255496]
[1759202033317,0.39024645,114480.0,114470.0,0.08255496]
[1759202033513,0.38944645,114480.0,114470.0,0.08255496]
[1759202033716,0.38984645,114480.0,114470.0,0.08255496]
[1759202034120,0.38944645,114480.0,114470.0,0.08255496]
[1759202034323,0.38984645,114480.0,114470.0,0.08255496]
[1759202034723,0.43684645,114480.0,114470.0,0.08955496]
[1759202034920,0.52514235,114480.0,114470.0,0.09955496]
[1759202035825,0.89741235,114480.0,114470.0,0.08649496]
[1759202036121,1.16958302,114480.0,114470.0,0.03941]
[1759202036623,1.12158302,114480.0,114470.0,0.02241]
[1759202037024,1.52158302,114480.0,114470.0,0.02241]
[1759202037224,0.1215936,114470.0,114460.0,0.06949496]
[1759202037421,1.55780427,114470.0,114460.0,0.06949496]
[1759202037621,1.55780427,114470.0,114460.0,0.02241]
[1759202038321,0.1089412,114460.0,114450.0,0.08255496]
[1759202038626,0.38677187,114460.0,114450.0,0.06949496]
[1759202038925,0.38677187,114460.0,114450.0,0.15681376]
[1759202039125,0.1146012,114460.0,114450.0,0.15681376]
[1759202039328,0.38677187,114460.0,114450.0,0.15681376]
[1759202039522,0.02163,114460.0,114450.0,0.16987376]
[1759202039717,0.01963,114460.0,114450.0,0.40495947]
[1759202039924,0.023,114470.0,114460.0,0.1003712]
[1759202040122,0.86847959,114470.0,114460.0,0.75575187]
[1759202040322,0.06547959,114470.0,114460.0,0.75575187]
[1759202040624,0.04503,114470.0,114460.0,0.75575187]
[1759202041027,0.02203,114470.0,114460.0,0.80283683]
[1759202041614,0.02163,114470.0,114460.0,0.80283683]
[1759202041827,0.02203,114470.0,114460.0,0.80283683]
[1759202042015,0.02203,114470.0,114460.0,0.80483683]